[Event "Late-Titled-Tuesday-Blitz-February-20-2024"]
[Site "Chess.com"]
[Date "2024.02.20"]
[Round "5"]
[White "TheMagician"]
[Black "WPWPWP-2015"]
[Result "1-0"]
[WhiteElo "2214"]
[BlackElo "2418"]
[TimeControl "180+1"]
[EndTime "14:56:36 PST"]
[Termination "TheMagician won by checkmate"]

1. d4 {[%clk 0:03:00.9]} 1... Nf6 {[%clk 0:02:57.9]} 2. c4 {[%clk 0:02:59.1]}
2... e6 {[%clk 0:02:53.6]} 3. Nf3 {[%clk 0:02:58]} 3... Be7 {[%clk 0:02:53.1]}
4. g3 {[%clk 0:02:56.9]} 4... O-O {[%clk 0:02:52.7]} 5. Bg2 {[%clk 0:02:57]}
5... Qe8 {[%clk 0:02:52.6]} 6. O-O {[%clk 0:02:56.1]} 6... d6 {[%clk 0:02:52.6]}
7. Nc3 {[%clk 0:02:55.2]} 7... Qd8 {[%clk 0:02:50]} 8. e4 {[%clk 0:02:54.6]}
8... Nbd7 {[%clk 0:02:49.5]} 9. Re1 {[%clk 0:02:53.6]} 9... Ne8 {[%clk
0:02:47.4]} 10. h3 {[%clk 0:02:53.4]} 10... c6 {[%clk 0:02:46.6]} 11. Nd2 {[%clk
0:02:51.9]} 11... a5 {[%clk 0:02:44.7]} 12. f4 {[%clk 0:02:51.5]} 12... e5
{[%clk 0:02:44]} 13. d5 {[%clk 0:02:44.1]} 13... Bf6 {[%clk 0:02:41.4]} 14. f5
{[%clk 0:02:38.8]} 14... Bg5 {[%clk 0:02:37.4]} 15. Nf3 {[%clk 0:02:36.4]} 15...
Bxc1 {[%clk 0:02:35.8]} 16. Qxc1 {[%clk 0:02:36.5]} 16... Nc5 {[%clk 0:02:34.5]}
17. Qe3 {[%clk 0:02:31.4]} 17... Qe7 {[%clk 0:02:28.7]} 18. g4 {[%clk
0:02:27.6]} 18... h6 {[%clk 0:02:26.1]} 19. Rad1 {[%clk 0:02:23.5]} 19... Nc7
{[%clk 0:02:24.4]} 20. Re2 {[%clk 0:02:17]} 20... cxd5 {[%clk 0:02:20.1]} 21.
Nxd5 {[%clk 0:02:15.5]} 21... Nxd5 {[%clk 0:02:19.4]} 22. Rxd5 {[%clk
0:02:06.3]} 22... b6 {[%clk 0:02:18.2]} 23. Red2 {[%clk 0:01:24.8]} 23... Bb7
{[%clk 0:02:05.1]} 24. h4 {[%clk 0:01:24.8]} 24... Bxd5 {[%clk 0:02:01.7]} 25.
Rxd5 {[%clk 0:01:24.7]} 25... Kh7 {[%clk 0:01:50.2]} 26. g5 {[%clk 0:01:24.1]}
26... h5 {[%clk 0:01:44.4]} 27. g6+ {[%clk 0:01:08.1]} 27... fxg6 {[%clk
0:01:34.3]} 28. Ng5+ {[%clk 0:01:04.2]} 28... Kg8 {[%clk 0:01:34]} 29. Qe2
{[%clk 0:01:01.9]} 29... Nd7 {[%clk 0:01:17]} 30. Bh3 {[%clk 0:00:56.5]} 30...
Nf6 {[%clk 0:01:11.1]} 31. fxg6 {[%clk 0:00:56.3]} 31... Rfc8 {[%clk 0:00:34]}
32. Be6+ {[%clk 0:00:50.9]} 32... Kf8 {[%clk 0:00:33.9]} 33. b3 {[%clk
0:00:42.7]} 33... a4 {[%clk 0:00:28.6]} 34. b4 {[%clk 0:00:40.8]} 34... b5
{[%clk 0:00:23.3]} 35. Rxb5 {[%clk 0:00:39.6]} 35... Rcb8 {[%clk 0:00:23.3]} 36.
Rxb8+ {[%clk 0:00:31]} 36... Rxb8 {[%clk 0:00:23.1]} 37. b5 {[%clk 0:00:30.8]}
37... Qa7+ {[%clk 0:00:22.9]} 38. Qf2 {[%clk 0:00:29.8]} 38... Qxf2+ {[%clk
0:00:17.3]} 39. Kxf2 {[%clk 0:00:29.7]} 39... Ke7 {[%clk 0:00:13.7]} 40. Bf5
{[%clk 0:00:26.2]} 40... Nd7 {[%clk 0:00:06.7]} 41. Bxd7 {[%clk 0:00:24.6]}
41... Kxd7 {[%clk 0:00:06.6]} 42. Ke3 {[%clk 0:00:23.1]} 42... Rc8 {[%clk
0:00:03.8]} 43. Kd3 {[%clk 0:00:23.2]} 43... Rh8 {[%clk 0:00:03.4]} 44. Nf7
{[%clk 0:00:23.1]} 44... Re8 {[%clk 0:00:02.8]} 45. Kc3 {[%clk 0:00:23.1]} 45...
Re6 {[%clk 0:00:02.8]} 46. Nh8 {[%clk 0:00:20]} 46... Rf6 {[%clk 0:00:02.8]} 47.
Kb4 {[%clk 0:00:18.3]} 47... Rf4 {[%clk 0:00:02.9]} 48. b6 {[%clk 0:00:13]}
48... Kc6 {[%clk 0:00:02.4]} 49. Ka5 {[%clk 0:00:08.4]} 49... Rxe4 {[%clk
0:00:02.3]} 50. Nf7 {[%clk 0:00:07.7]} 50... Rxc4 {[%clk 0:00:01.4]} 51. Nd8+
{[%clk 0:00:07.7]} 51... Kd7 {[%clk 0:00:01.5]} 52. b7 {[%clk 0:00:06.6]} 52...
Rc5+ {[%clk 0:00:01.3]} 53. Ka6 {[%clk 0:00:06.8]} 53... Kxd8 {[%clk 0:00:01.3]}
54. b8=Q+ {[%clk 0:00:06.4]} 54... Ke7 {[%clk 0:00:01.8]} 55. Qg8 {[%clk
0:00:06.8]} 55... Kf6 {[%clk 0:00:01.6]} 56. Qf7# {[%clk 0:00:06.9]} 1-0

[Event "Late-Titled-Tuesday-Blitz-February-20-2024"]
[Site "Chess.com"]
[Date "2024.02.20"]
[Round "5"]
[White "NowInChess"]
[Black "toninhojit"]
[Result "0-1"]
[WhiteElo "2280"]
[BlackElo "2458"]
[TimeControl "180+1"]
[EndTime "14:56:37 PST"]
[Termination "toninhojit won on time"]

1. e4 {[%clk 0:03:00.9]} 1... c5 {[%clk 0:02:57.8]} 2. d3 {[%clk 0:03:00.4]}
2... Nc6 {[%clk 0:02:57]} 3. g3 {[%clk 0:03:00.6]} 3... g6 {[%clk 0:02:56.3]} 4.
Bg2 {[%clk 0:03:00.9]} 4... Bg7 {[%clk 0:02:56.9]} 5. f4 {[%clk 0:03:01.4]} 5...
d6 {[%clk 0:02:57.3]} 6. Nf3 {[%clk 0:03:01.8]} 6... Nf6 {[%clk 0:02:57.8]} 7.
O-O {[%clk 0:03:01.9]} 7... O-O {[%clk 0:02:58.5]} 8. Nc3 {[%clk 0:03:01.5]}
8... Ne8 {[%clk 0:02:59.2]} 9. h3 {[%clk 0:02:59.5]} 9... Nc7 {[%clk 0:02:59.9]}
10. g4 {[%clk 0:02:56.8]} 10... Ne6 {[%clk 0:03:00.1]} 11. Nd5 {[%clk
0:02:56.4]} 11... Ned4 {[%clk 0:02:59.2]} 12. c3 {[%clk 0:02:56.5]} 12... Nxf3+
{[%clk 0:02:59.4]} 13. Qxf3 {[%clk 0:02:56.6]} 13... e6 {[%clk 0:03:00.3]} 14.
Ne3 {[%clk 0:02:56.1]} 14... f5 {[%clk 0:02:57.6]} 15. exf5 {[%clk 0:02:53.5]}
15... gxf5 {[%clk 0:02:58.5]} 16. gxf5 {[%clk 0:02:48]} 16... exf5 {[%clk
0:02:59.4]} 17. Bd2 {[%clk 0:02:35.4]} 17... Kh8 {[%clk 0:02:59.5]} 18. Rae1
{[%clk 0:02:28.2]} 18... Be6 {[%clk 0:02:55.8]} 19. Nd5 {[%clk 0:02:25.5]} 19...
Bg8 {[%clk 0:02:53.8]} 20. Qh5 {[%clk 0:02:18.7]} 20... Qd7 {[%clk 0:02:44.9]}
21. Kh2 {[%clk 0:01:55]} 21... Rae8 {[%clk 0:02:44.7]} 22. Rg1 {[%clk
0:01:49.8]} 22... Qf7 {[%clk 0:02:38.7]} 23. Qf3 {[%clk 0:01:44.5]} 23... Rxe1
{[%clk 0:02:30.9]} 24. Rxe1 {[%clk 0:01:43.1]} 24... Re8 {[%clk 0:02:31.8]} 25.
Qf2 {[%clk 0:01:35.6]} 25... Qh5 {[%clk 0:02:26.6]} 26. Rxe8 {[%clk 0:01:31.8]}
26... Qxe8 {[%clk 0:02:27.5]} 27. Qe1 {[%clk 0:01:23.9]} 27... Qxe1 {[%clk
0:02:24]} 28. Bxe1 {[%clk 0:01:24]} 28... Bf7 {[%clk 0:02:21.3]} 29. Bh4 {[%clk
0:01:19.5]} 29... Kg8 {[%clk 0:02:21]} 30. Ne7+ {[%clk 0:01:17.3]} 30... Nxe7
{[%clk 0:02:18.7]} 31. Bxe7 {[%clk 0:01:18.2]} 31... Bf8 {[%clk 0:02:19.5]} 32.
Bxf8 {[%clk 0:01:17.8]} 32... Kxf8 {[%clk 0:02:20.4]} 33. Bxb7 {[%clk
0:01:15.1]} 33... Bxa2 {[%clk 0:02:20.3]} 34. Bc8 {[%clk 0:01:12.7]} 34... Bb1
{[%clk 0:02:20.7]} 35. Bxf5 {[%clk 0:01:12.4]} 35... c4 {[%clk 0:02:21.1]} 36.
Bg4 {[%clk 0:00:41.5]} 36... cxd3 {[%clk 0:02:19.9]} 37. Kg3 {[%clk 0:00:40.3]}
37... Bc2 {[%clk 0:02:20.3]} 38. Bf5 {[%clk 0:00:33.3]} 38... Bb1 {[%clk
0:02:15.3]} 39. Bg4 {[%clk 0:00:30.6]} 39... Ke7 {[%clk 0:02:05.7]} 40. Kf2
{[%clk 0:00:30.5]} 40... Kf6 {[%clk 0:01:59.5]} 41. Ke3 {[%clk 0:00:30.2]} 41...
Kg6 {[%clk 0:01:52.3]} 42. Bf3 {[%clk 0:00:29]} 42... Kf6 {[%clk 0:01:49.6]} 43.
Bc6 {[%clk 0:00:23.3]} 43... h5 {[%clk 0:01:46.7]} 44. Bb5 {[%clk 0:00:21.8]}
44... h4 {[%clk 0:01:37.9]} 45. Bxd3 {[%clk 0:00:20.6]} 45... Ba2 {[%clk
0:01:38.8]} 46. b4 {[%clk 0:00:19.8]} 46... Be6 {[%clk 0:01:37.8]} 47. Bf1
{[%clk 0:00:16.8]} 47... Bf5 {[%clk 0:01:35.8]} 48. Kd4 {[%clk 0:00:16]} 48...
Ke6 {[%clk 0:01:36.4]} 49. c4 {[%clk 0:00:15.6]} 49... Bc2 {[%clk 0:01:34.1]}
50. c5 {[%clk 0:00:15.4]} 50... dxc5+ {[%clk 0:01:35]} 51. bxc5 {[%clk
0:00:15.6]} 51... Ba4 {[%clk 0:01:34.9]} 52. Bd3 {[%clk 0:00:13]} 52... Kf6
{[%clk 0:01:31.4]} 53. Kd5 {[%clk 0:00:11.3]} 53... Bd7 {[%clk 0:01:30]} 54. Bf1
{[%clk 0:00:10.3]} 54... Kf5 {[%clk 0:01:30.3]} 55. c6 {[%clk 0:00:08.5]} 55...
Bc8 {[%clk 0:01:29.3]} 56. Kd6 {[%clk 0:00:08.1]} 56... Kxf4 {[%clk 0:01:28.9]}
57. Kc7 {[%clk 0:00:07.8]} 57... Bf5 {[%clk 0:01:27.1]} 58. Kd8 {[%clk
0:00:07.1]} 58... a5 {[%clk 0:01:26.1]} 59. c7 {[%clk 0:00:06.5]} 59... a4
{[%clk 0:01:26.6]} 60. Bb5 {[%clk 0:00:04.6]} 60... a3 {[%clk 0:01:24.4]} 61.
Bd7 {[%clk 0:00:04.6]} 61... Bxd7 {[%clk 0:01:17.9]} 62. Kxd7 {[%clk 0:00:05.5]}
62... a2 {[%clk 0:01:18.7]} 63. c8=Q {[%clk 0:00:05.8]} 63... a1=Q {[%clk
0:01:18.4]} 64. Qf8+ {[%clk 0:00:05.3]} 64... Kg3 {[%clk 0:01:16.4]} 65. Qf5
{[%clk 0:00:04]} 65... Qd4+ {[%clk 0:01:13.4]} 66. Ke6 {[%clk 0:00:04.1]} 66...
Qf4 {[%clk 0:01:04.5]} 67. Qd3+ {[%clk 0:00:04.1]} 67... Kh2 {[%clk 0:00:58.3]}
68. Qe2+ {[%clk 0:00:03.3]} 68... Kxh3 {[%clk 0:00:56.2]} 69. Kd5 {[%clk
0:00:01.8]} 69... Kg3 {[%clk 0:00:52.3]} 70. Qe1+ {[%clk 0:00:01.4]} 70... Qf2
{[%clk 0:00:52.8]} 71. Qe5+ {[%clk 0:00:01.3]} 71... Qf4 {[%clk 0:00:49.6]} 0-1

[Event "Late-Titled-Tuesday-Blitz-February-20-2024"]
[Site "Chess.com"]
[Date "2024.02.20"]
[Round "5"]
[White "Rud_Makarian"]
[Black "vugarrasulov"]
[Result "1-0"]
[WhiteElo "3080"]
[BlackElo "2941"]
[TimeControl "180+1"]
[EndTime "14:56:39 PST"]
[Termination "Rud_Makarian won by resignation"]

1. d4 {[%clk 0:03:00.9]} 1... Nf6 {[%clk 0:02:59.7]} 2. c4 {[%clk 0:03:01.5]}
2... e6 {[%clk 0:02:59.9]} 3. Nf3 {[%clk 0:03:02.1]} 3... c5 {[%clk 0:02:56.8]}
4. d5 {[%clk 0:03:02]} 4... exd5 {[%clk 0:02:57.7]} 5. cxd5 {[%clk 0:03:02.9]}
5... d6 {[%clk 0:02:58.1]} 6. Nc3 {[%clk 0:03:03.6]} 6... g6 {[%clk 0:02:58.7]}
7. h3 {[%clk 0:03:04.3]} 7... Bg7 {[%clk 0:02:58.7]} 8. e4 {[%clk 0:03:04.9]}
8... O-O {[%clk 0:02:58.3]} 9. Bd3 {[%clk 0:03:05.6]} 9... b5 {[%clk 0:02:58.3]}
10. Nxb5 {[%clk 0:03:03.6]} 10... Re8 {[%clk 0:02:56.8]} 11. Nd2 {[%clk
0:03:03.1]} 11... Nxd5 {[%clk 0:02:50.2]} 12. Nc4 {[%clk 0:03:02.8]} 12... Bf8
{[%clk 0:02:32.3]} 13. O-O {[%clk 0:02:59.2]} 13... Nb6 {[%clk 0:02:28.1]} 14.
Bf4 {[%clk 0:02:51.8]} 14... Nxc4 {[%clk 0:02:24.8]} 15. Bxc4 {[%clk 0:02:52.7]}
15... Be6 {[%clk 0:02:02.4]} 16. Bd5 {[%clk 0:02:36.7]} 16... Bxd5 {[%clk
0:01:53.9]} 17. Qxd5 {[%clk 0:02:37.6]} 17... Nd7 {[%clk 0:01:53.3]} 18. Nxd6
{[%clk 0:02:11.9]} 18... Bxd6 {[%clk 0:01:51.6]} 19. Qxd6 {[%clk 0:02:12.7]}
19... Rxe4 {[%clk 0:01:46.4]} 20. Rfd1 {[%clk 0:02:12.7]} 20... Qf6 {[%clk
0:01:30.4]} 21. Be3 {[%clk 0:02:12.2]} 21... Qxd6 {[%clk 0:01:22.4]} 22. Rxd6
{[%clk 0:02:13.1]} 22... Nb6 {[%clk 0:01:21.5]} 23. Bxc5 {[%clk 0:02:03.8]}
23... Nc4 {[%clk 0:01:21.4]} 24. Rd4 {[%clk 0:02:03.9]} 24... Rxd4 {[%clk
0:01:13.8]} 25. Bxd4 {[%clk 0:02:04.8]} 25... Rd8 {[%clk 0:01:12.7]} 26. Bc3
{[%clk 0:02:04.9]} 26... f5 {[%clk 0:01:10.5]} 27. Kf1 {[%clk 0:02:03.1]} 27...
Kf7 {[%clk 0:01:09.7]} 28. Ke2 {[%clk 0:02:03.6]} 28... Nb6 {[%clk 0:01:09.1]}
29. Rd1 {[%clk 0:02:01.6]} 29... Rxd1 {[%clk 0:01:05.9]} 30. Kxd1 {[%clk
0:02:01.7]} 30... Ke6 {[%clk 0:01:05.4]} 31. Bd4 {[%clk 0:02:01]} 31... Nc8
{[%clk 0:01:03.4]} 32. Kc2 {[%clk 0:01:26.2]} 32... Kd5 {[%clk 0:01:03]} 33. Kd3
{[%clk 0:01:26.2]} 33... a6 {[%clk 0:01:02.3]} 34. b4 {[%clk 0:01:25.8]} 34...
Nd6 {[%clk 0:00:59]} 35. a4 {[%clk 0:01:25.9]} 35... g5 {[%clk 0:00:53.7]} 36.
f3 {[%clk 0:01:21.2]} 36... h5 {[%clk 0:00:53.1]} 37. Bf6 {[%clk 0:01:03.8]}
37... g4 {[%clk 0:00:51]} 38. Ke3 {[%clk 0:01:02.9]} 38... gxh3 {[%clk
0:00:30.5]} 39. gxh3 {[%clk 0:01:02.8]} 39... Nc4+ {[%clk 0:00:30.7]} 40. Kf4
{[%clk 0:01:02.9]} 40... Ke6 {[%clk 0:00:31.3]} 41. Bd4 {[%clk 0:01:00.4]} 41...
Na3 {[%clk 0:00:23.5]} 42. Bc5 {[%clk 0:00:45.7]} 42... Nc4 {[%clk 0:00:23]} 43.
b5 {[%clk 0:00:35.5]} 43... a5 {[%clk 0:00:22.9]} 44. b6 {[%clk 0:00:31]} 44...
Kd7 {[%clk 0:00:22.8]} 45. Kxf5 {[%clk 0:00:28.7]} 45... Kc6 {[%clk 0:00:23.3]}
46. Bd4 {[%clk 0:00:27.3]} 46... Kd5 {[%clk 0:00:20]} 47. Bc3 {[%clk 0:00:21.5]}
47... Nxb6 {[%clk 0:00:19.8]} 48. Bxa5 {[%clk 0:00:19.8]} 48... Nxa4 {[%clk
0:00:20.7]} 49. Kg6 {[%clk 0:00:18]} 49... Ke6 {[%clk 0:00:20.4]} 50. f4 {[%clk
0:00:18.2]} 50... Nc5 {[%clk 0:00:19.4]} 51. f5+ {[%clk 0:00:18.6]} 51... Kd7
{[%clk 0:00:18]} 52. f6 {[%clk 0:00:18.5]} 52... Ke6 {[%clk 0:00:12.9]} 53. f7
{[%clk 0:00:16.5]} 53... Nd7 {[%clk 0:00:13.5]} 54. Kg7 {[%clk 0:00:17.2]} 54...
Kf5 {[%clk 0:00:12.7]} 55. Bd8 {[%clk 0:00:14.6]} 55... Kf4 {[%clk 0:00:10.1]}
56. h4 {[%clk 0:00:14.7]} 56... Kf5 {[%clk 0:00:09.2]} 57. Bg5 {[%clk
0:00:14.7]} 57... Ke6 {[%clk 0:00:08.7]} 58. f8=N+ {[%clk 0:00:12.5]} 58... Nxf8
{[%clk 0:00:08.5]} 59. Kxf8 {[%clk 0:00:12.4]} 59... Kf5 {[%clk 0:00:09.4]} 60.
Kg7 {[%clk 0:00:12.9]} 1-0

[Event "Late-Titled-Tuesday-Blitz-February-20-2024"]
[Site "Chess.com"]
[Date "2024.02.20"]
[Round "5"]
[White "koncheto"]
[Black "yaguigor"]
[Result "0-1"]
[WhiteElo "2411"]
[BlackElo "2633"]
[TimeControl "180+1"]
[EndTime "14:56:39 PST"]
[Termination "yaguigor won by resignation"]

1. e4 {[%clk 0:03:00.9]} 1... e5 {[%clk 0:02:57.9]} 2. Nf3 {[%clk 0:03:01.1]}
2... Nc6 {[%clk 0:02:57.2]} 3. Bc4 {[%clk 0:03:01.4]} 3... Bc5 {[%clk
0:02:56.3]} 4. c3 {[%clk 0:03:01.8]} 4... Nf6 {[%clk 0:02:55.7]} 5. d3 {[%clk
0:03:02.4]} 5... O-O {[%clk 0:02:51.2]} 6. O-O {[%clk 0:03:02.4]} 6... d5 {[%clk
0:02:50.1]} 7. exd5 {[%clk 0:03:03.3]} 7... Nxd5 {[%clk 0:02:49.6]} 8. h3 {[%clk
0:03:04.2]} 8... Re8 {[%clk 0:02:42]} 9. Re1 {[%clk 0:03:01.2]} 9... Nb6 {[%clk
0:02:29.7]} 10. Bb5 {[%clk 0:03:00.8]} 10... f6 {[%clk 0:02:27]} 11. Nbd2 {[%clk
0:02:49]} 11... Bd7 {[%clk 0:02:15.9]} 12. Ne4 {[%clk 0:02:32.6]} 12... Bf8
{[%clk 0:02:14.7]} 13. Ng3 {[%clk 0:02:01]} 13... a6 {[%clk 0:02:11.1]} 14. Bxc6
{[%clk 0:02:00.6]} 14... Bxc6 {[%clk 0:02:10.7]} 15. Be3 {[%clk 0:02:00.6]}
15... Nd5 {[%clk 0:02:09.6]} 16. Qd2 {[%clk 0:01:54.8]} 16... Nxe3 {[%clk
0:02:08.5]} 17. Qxe3 {[%clk 0:01:55.7]} 17... Qd5 {[%clk 0:02:07.2]} 18. b3
{[%clk 0:01:51.3]} 18... Rad8 {[%clk 0:02:05.5]} 19. Rad1 {[%clk 0:01:50.2]}
19... Bc5 {[%clk 0:02:03.3]} 20. Qe4 {[%clk 0:01:42.7]} 20... Qd7 {[%clk
0:01:45.4]} 21. Qc4+ {[%clk 0:01:39.8]} 21... Qd5 {[%clk 0:01:45.5]} 22. Qg4
{[%clk 0:01:34.6]} 22... Qf7 {[%clk 0:01:37.3]} 23. Nf5 {[%clk 0:01:30.9]} 23...
Kh8 {[%clk 0:01:36.8]} 24. d4 {[%clk 0:01:29.3]} 24... exd4 {[%clk 0:01:32.4]}
25. Rxe8+ {[%clk 0:01:26]} 25... Rxe8 {[%clk 0:01:30.5]} 26. N3xd4 {[%clk
0:01:22.2]} 26... Bd7 {[%clk 0:01:29.7]} 27. Qf4 {[%clk 0:01:13.8]} 27... Bc8
{[%clk 0:01:25.7]} 28. Nf3 {[%clk 0:01:07.9]} 28... g6 {[%clk 0:01:17.1]} 29.
Ng3 {[%clk 0:01:02.7]} 29... Bd6 {[%clk 0:01:12.1]} 30. Qh4 {[%clk 0:01:00.7]}
30... Kg7 {[%clk 0:00:51.5]} 31. Nf1 {[%clk 0:00:57.6]} 31... Qe6 {[%clk
0:00:48.2]} 32. Re1 {[%clk 0:00:50.3]} 32... Qf7 {[%clk 0:00:43.5]} 33. Ne3
{[%clk 0:00:48.1]} 33... Re7 {[%clk 0:00:38.9]} 34. Qd4 {[%clk 0:00:45.9]} 34...
Be6 {[%clk 0:00:34.8]} 35. Rd1 {[%clk 0:00:44.5]} 35... h5 {[%clk 0:00:32.7]}
36. Ng5 {[%clk 0:00:35.4]} 36... Qe8 {[%clk 0:00:31.7]} 37. Nxe6+ {[%clk
0:00:33]} 37... Rxe6 {[%clk 0:00:31.5]} 38. Qd5 {[%clk 0:00:33.9]} 38... c6
{[%clk 0:00:28.6]} 39. Qf3 {[%clk 0:00:32.4]} 39... Qe7 {[%clk 0:00:26.8]} 40.
Rd3 {[%clk 0:00:29.6]} 40... Bc5 {[%clk 0:00:26.1]} 41. Qf4 {[%clk 0:00:28.1]}
41... Bxe3 {[%clk 0:00:24]} 42. Rxe3 {[%clk 0:00:28.2]} 42... Rxe3 {[%clk
0:00:23.8]} 43. Qxe3 {[%clk 0:00:28.4]} 43... Qxe3 {[%clk 0:00:23.3]} 44. fxe3
{[%clk 0:00:29.3]} 44... Kf7 {[%clk 0:00:22.9]} 45. e4 {[%clk 0:00:24]} 45...
Ke6 {[%clk 0:00:21.1]} 46. Kf2 {[%clk 0:00:24.5]} 46... Ke5 {[%clk 0:00:21.2]}
47. Ke3 {[%clk 0:00:25.1]} 47... h4 {[%clk 0:00:20.6]} 48. Kf3 {[%clk
0:00:23.3]} 48... c5 {[%clk 0:00:19.8]} 49. Ke3 {[%clk 0:00:15.8]} 49... b5
{[%clk 0:00:19.4]} 50. a3 {[%clk 0:00:16.1]} 50... a5 {[%clk 0:00:18.8]} 51. b4
{[%clk 0:00:14.3]} 51... cxb4 {[%clk 0:00:17.7]} 52. cxb4 {[%clk 0:00:14]} 52...
a4 {[%clk 0:00:16.5]} 53. Kd3 {[%clk 0:00:13.2]} 53... f5 {[%clk 0:00:12.5]} 54.
exf5 {[%clk 0:00:11.5]} 54... gxf5 {[%clk 0:00:12.2]} 55. Ke3 {[%clk 0:00:12]}
55... f4+ {[%clk 0:00:10.8]} 56. Kf3 {[%clk 0:00:07.3]} 56... Kf5 {[%clk
0:00:11]} 57. Kf2 {[%clk 0:00:07.7]} 57... Ke4 {[%clk 0:00:11.2]} 58. Ke2 {[%clk
0:00:08.2]} 58... Kd4 {[%clk 0:00:11.1]} 59. Kf3 {[%clk 0:00:08.8]} 59... Kc3
{[%clk 0:00:10.5]} 60. Kg4 {[%clk 0:00:09.3]} 60... Kb3 {[%clk 0:00:11]} 61.
Kxh4 {[%clk 0:00:09.7]} 61... Kxa3 {[%clk 0:00:11.4]} 62. Kg4 {[%clk 0:00:08.3]}
62... Kxb4 {[%clk 0:00:11.7]} 63. h4 {[%clk 0:00:08.8]} 63... a3 {[%clk
0:00:12.3]} 64. h5 {[%clk 0:00:09.5]} 64... a2 {[%clk 0:00:12.9]} 65. h6 {[%clk
0:00:10.4]} 65... a1=Q {[%clk 0:00:13.4]} 0-1

[Event "Late-Titled-Tuesday-Blitz-February-20-2024"]
[Site "Chess.com"]
[Date "2024.02.20"]
[Round "5"]
[White "ArchibaldCerveza29"]
[Black "Ze-Pequeno"]
[Result "0-1"]
[WhiteElo "2429"]
[BlackElo "2243"]
[TimeControl "180+1"]
[EndTime "14:56:41 PST"]
[Termination "Ze-Pequeno won on time"]

1. e4 {[%clk 0:02:54.9]} 1... c5 {[%clk 0:02:57.6]} 2. Nf3 {[%clk 0:02:53.6]}
2... d6 {[%clk 0:02:57.5]} 3. d4 {[%clk 0:02:46.8]} 3... cxd4 {[%clk 0:02:58.4]}
4. Nxd4 {[%clk 0:02:46.8]} 4... Nf6 {[%clk 0:02:57.5]} 5. Nc3 {[%clk 0:02:47.3]}
5... a6 {[%clk 0:02:57.7]} 6. Be3 {[%clk 0:02:45]} 6... Ng4 {[%clk 0:02:57.2]}
7. Bc1 {[%clk 0:02:43.4]} 7... Nf6 {[%clk 0:02:57]} 8. f3 {[%clk 0:02:42.8]}
8... e6 {[%clk 0:02:55.3]} 9. Bc4 {[%clk 0:02:42.6]} 9... b5 {[%clk 0:02:54.6]}
10. Bb3 {[%clk 0:02:42.3]} 10... Bb7 {[%clk 0:02:55.2]} 11. Be3 {[%clk
0:02:41.1]} 11... Nbd7 {[%clk 0:02:55.5]} 12. Qe2 {[%clk 0:02:40.3]} 12... Nc5
{[%clk 0:02:55.7]} 13. O-O-O {[%clk 0:02:38.9]} 13... Qc7 {[%clk 0:02:54.1]} 14.
Kb1 {[%clk 0:02:38.1]} 14... Be7 {[%clk 0:02:53.6]} 15. a3 {[%clk 0:02:35.9]}
15... O-O {[%clk 0:02:52.6]} 16. Ba2 {[%clk 0:02:33.5]} 16... Rfc8 {[%clk
0:02:36.9]} 17. g4 {[%clk 0:02:31.3]} 17... Nfd7 {[%clk 0:02:35.7]} 18. h4
{[%clk 0:02:18.5]} 18... Rab8 {[%clk 0:02:25.3]} 19. g5 {[%clk 0:02:09.4]} 19...
Ba8 {[%clk 0:02:24.9]} 20. h5 {[%clk 0:02:00.3]} 20... b4 {[%clk 0:02:22]} 21.
axb4 {[%clk 0:01:57.3]} 21... Rxb4 {[%clk 0:02:22.9]} 22. Nb3 {[%clk 0:01:52.6]}
22... Ne5 {[%clk 0:02:11.5]} 23. Nxc5 {[%clk 0:01:40.9]} 23... dxc5 {[%clk
0:02:11.4]} 24. f4 {[%clk 0:01:29]} 24... Nc6 {[%clk 0:02:09.4]} 25. g6 {[%clk
0:01:27.4]} 25... Rcb8 {[%clk 0:01:55.9]} 26. gxf7+ {[%clk 0:01:27.1]} 26... Kh8
{[%clk 0:01:54.6]} 27. b3 {[%clk 0:01:21.6]} 27... c4 {[%clk 0:01:48.4]} 28. Bc1
{[%clk 0:00:58.3]} 28... cxb3 {[%clk 0:01:44.8]} 29. cxb3 {[%clk 0:00:54.9]}
29... Nd4 {[%clk 0:01:40.8]} 30. Rxd4 {[%clk 0:00:41.2]} 30... Rxd4 {[%clk
0:01:37.3]} 31. Bb2 {[%clk 0:00:39.6]} 31... Bb4 {[%clk 0:01:26.3]} 32. Rc1
{[%clk 0:00:37.6]} 32... Qxf7 {[%clk 0:01:22]} 33. Nd5 {[%clk 0:00:37.8]} 33...
Rd2 {[%clk 0:01:05.2]} 34. Qxa6 {[%clk 0:00:22.1]} 34... Rxb2+ {[%clk
0:01:02.3]} 35. Kxb2 {[%clk 0:00:20.3]} 35... exd5 {[%clk 0:01:00.2]} 36. Rc8+
{[%clk 0:00:18.4]} 36... Rxc8 {[%clk 0:01:00.5]} 37. Qxc8+ {[%clk 0:00:18.9]}
37... Qf8 {[%clk 0:00:58.2]} 38. Qxf8+ {[%clk 0:00:18.5]} 38... Bxf8 {[%clk
0:00:58.8]} 39. e5 {[%clk 0:00:16.5]} 39... Bb4 {[%clk 0:00:54]} 40. Kc2 {[%clk
0:00:16.1]} 40... Kg8 {[%clk 0:00:42.7]} 41. Kd3 {[%clk 0:00:16.5]} 41... Kf7
{[%clk 0:00:43.3]} 42. Kd4 {[%clk 0:00:16.9]} 42... Ke6 {[%clk 0:00:43.1]} 43.
Bb1 {[%clk 0:00:17.1]} 43... h6 {[%clk 0:00:40.3]} 44. f5+ {[%clk 0:00:17]}
44... Ke7 {[%clk 0:00:40.9]} 45. Bd3 {[%clk 0:00:14.2]} 45... Ba3 {[%clk
0:00:40.1]} 46. e6 {[%clk 0:00:09.9]} 46... Kd6 {[%clk 0:00:38.5]} 47. Bb5
{[%clk 0:00:09.9]} 47... Bb2+ {[%clk 0:00:36.4]} 48. Ke3 {[%clk 0:00:10]} 48...
Bf6 {[%clk 0:00:36.4]} 49. Be8 {[%clk 0:00:09.6]} 49... Kc5 {[%clk 0:00:33.2]}
50. Kd3 {[%clk 0:00:09.2]} 50... Bb7 {[%clk 0:00:32]} 51. Bf7 {[%clk 0:00:05.6]}
51... Ba6+ {[%clk 0:00:31]} 52. Kc2 {[%clk 0:00:06.2]} 52... Be2 {[%clk
0:00:27.8]} 53. Kd2 {[%clk 0:00:06.2]} 53... Bg4 {[%clk 0:00:27.4]} 54. Bg6
{[%clk 0:00:06.2]} 54... Bf3 {[%clk 0:00:25.2]} 55. Kd3 {[%clk 0:00:06.3]} 55...
Be4+ {[%clk 0:00:25.4]} 56. Kd2 {[%clk 0:00:06.5]} 56... d4 {[%clk 0:00:25]} 57.
Ke2 {[%clk 0:00:05.8]} 57... Bg5 {[%clk 0:00:23.5]} 58. Kd1 {[%clk 0:00:05]}
58... d3 {[%clk 0:00:22.5]} 59. f6 {[%clk 0:00:03]} 59... Bf3+ {[%clk 0:00:23]}
60. Ke1 {[%clk 0:00:01.1]} 60... d2+ {[%clk 0:00:23.5]} 61. Kf2 {[%clk 0:00:02]}
61... Bxf6 {[%clk 0:00:18.1]} 0-1